fUSD/lending_fUSD_20240720
["ID","MTS","AMOUNT","RATE_DAILY","PERIOD"]
[332688054,1721452243088,-1000.0,0.000225,2]
[332688057,1721452243098,-3387.45244195,0.00022655,2]
[332688060,1721452243108,-648.64032589,0.00022655,2]
[332688062,1721452243118,-225.58067617,0.000229,2]
[332688064,1721452243127,-350.0,0.00023,2]
[332688066,1721452243137,-441.45,0.00023144,2]
[332688068,1721452243147,-1936.29386866,0.0002354,2]
[332688070,1721452243157,-281.37497433,0.0002382,2]
[332688072,1721452243168,-3000.0,0.0002386,2]
[332688074,1721452243177,-153.49,0.0002411,2]
[332688076,1721452243187,-464.66570795,0.00024112,4]
[332688078,1721452243196,-1539.067,0.0002428,2]
[332688080,1721452243206,-225.75,0.000248,2]
[332688083,1721452243218,-231.68,0.000248,2]
[332688085,1721452243228,-3387.45244195,0.00024843,2]
[332688087,1721452243239,-648.64032589,0.00024843,2]
[332688089,1721452243249,-2629.0,0.000249,2]
[332688091,1721452243260,-400.0,0.00025,2]
[332688093,1721452243271,-441.45,0.00025408,2]
[332688095,1721452243280,-177.011806,0.00025527,2]
[332688097,1721452243292,-4088.567796,0.00025527,2]
[332688099,1721452243302,-187.961007,0.00025527,2]
[332688100,1721452243313,-2675.411881,0.00025527,2]
[332688101,1721452243323,-2693.283642,0.00025527,2]
[332688102,1721452243333,-179.285401,0.00025527,2]
[332688103,1721452243343,-170.719966,0.00025527,2]
[332688104,1721452243354,-1077.160611,0.00025527,2]
[332688105,1721452243364,-673.320911,0.00025527,2]
[332688106,1721452243373,-668.85297,0.00025527,2]
[332688107,1721452243383,-185.75066,0.00025527,2]
[332688108,1721452243393,-162.328013,0.00025527,2]
[332688109,1721452243404,-187.565739,0.00025527,2]
[332688110,1721452243413,-4088.567796,0.00025846,2]
[332688111,1721452243423,-2675.411881,0.00025846,2]
[332688112,1721452243432,-2693.283642,0.00025846,2]
[332688113,1721452243442,-1077.160611,0.00025846,2]
[332688114,1721452243451,-673.320911,0.00025846,2]
[332688115,1721452243461,-668.85297,0.00025846,2]
[332688116,1721452243471,-179.285401,0.00025952,2]
[332688117,1721452243480,-170.719966,0.00025952,2]
[332688118,1721452243490,-1615.31,0.000261,7]
[332688119,1721452243500,-177.011806,0.00026165,2]
[332688120,1721452243509,-4088.567796,0.00026165,2]
[332688121,1721452243519,-2675.411881,0.00026165,2]
[332688122,1721452243530,-2693.283642,0.00026165,2]
[332688123,1721452243539,-1077.160611,0.00026165,2]
[332688124,1721452243550,-673.320911,0.00026165,2]
[332688125,1721452243561,-668.85297,0.00026165,2]
[332688126,1721452243570,-281.37497433,0.0002618,2]
[332688127,1721452243580,-153.49,0.00026301,2]
[332688128,1721452243595,-2761.24365401,0.00026341,7]
[332688129,1721452243605,-3000.0,0.0002636,2]
[332688130,1721452243615,-179.285401,0.00026378,2]
[332688131,1721452243624,-170.719966,0.00026378,2]
[332688132,1721452243635,-4088.567796,0.00026484,2]
[332688133,1721452243645,-2675.411881,0.00026484,2]
[332688134,1721452243655,-2693.283642,0.00026484,2]
[332688135,1721452243666,-1077.160611,0.00026484,2]
[332688136,1721452243675,-673.320911,0.00026484,2]
[332688137,1721452243685,-668.85297,0.00026484,2]
[332688138,1721452243694,-150.0,0.00026519,2]
[332688139,1721452243703,-150.0,0.00026521,2]
[332688140,1721452243714,-150.0,0.00026525,2]
[332688141,1721452243723,-150.0,0.00026529,2]
[332688142,1721452243733,-150.0,0.00026533,2]
[332688143,1721452243742,-150.0,0.00026534,2]
[332688144,1721452243751,-150.0,0.00026535,2]
[332688145,1721452243761,-150.0,0.00026535,2]
[332688146,1721452243771,-175.81838702,0.00026535,2]
[332688147,1721452243781,-150.0,0.00026536,2]
[332688148,1721452243790,-150.0,0.00026537,2]
[332688149,1721452243800,-150.0,0.00026539,2]
[332688150,1721452243811,-150.0,0.00026541,2]
[332688151,1721452243821,-150.0,0.00026541,2]
[332688152,1721452243830,-150.0,0.00026542,2]
[332688153,1721452243840,-150.0,0.00026544,2]
[332688154,1721452243850,-150.0,0.00026552,2]
[332688155,1721452243861,-150.0,0.00026553,2]
[332688156,1721452243871,-150.0,0.00026553,2]
[332688157,1721452243880,-150.0,0.00026554,2]
[332688158,1721452243891,-150.0,0.00026555,2]
[332688159,1721452243900,-150.0,0.00026556,2]
[332688160,1721452243910,-150.0,0.00026556,2]
[332688161,1721452243920,-150.0,0.00026557,2]
[332688162,1721452243930,-300.0,0.00026557,2]
[332688163,1721452243940,-150.0,0.00026558,2]
[332688164,1721452243950,-150.0,0.00026565,2]
[332688165,1721452243960,-150.0,0.00026569,2]
[332688166,1721452243970,-150.0,0.0002657,2]
[332688167,1721452243980,-150.0,0.00026572,2]
[332688168,1721452243990,-150.0,0.00026574,2]
[332688169,1721452243999,-150.0,0.00026575,2]
[332688170,1721452244009,-150.0,0.00026575,2]
[332688171,1721452244019,-150.0,0.00026576,2]
[332688172,1721452244030,-150.0,0.00026578,2]
[332688173,1721452244040,-150.0,0.00026581,2]
[332688174,1721452244051,-150.0,0.00026582,2]
[332688175,1721452244064,-150.0,0.00026583,2]
[332688176,1721452244074,-500.0,0.00026586,2]
[332688177,1721452244083,-200.0,0.00026586,2]
[332688178,1721452244093,-150.0,0.00026586,2]
[332688179,1721452244102,-150.0,0.00026589,2]
[332688180,1721452244112,-150.0,0.00026594,2]
[332688181,1721452244121,-150.0,0.00026594,2]
[332688182,1721452244132,-150.0,0.00026601,2]
[332688183,1721452244143,-150.0,0.00026608,2]
[332688184,1721452244153,-150.0,0.00026616,2]
[332688185,1721452244163,-150.0,0.0002662,2]
[332688186,1721452244172,-150.0,0.00026622,2]
[332688187,1721452244181,-1500.0,0.00026622,2]
[332688188,1721452244191,-150.0,0.00026627,2]
[332688189,1721452244201,-150.0,0.00026628,2]
[332688190,1721452244210,-150.0,0.00026629,2]
[332688191,1721452244219,-150.0,0.00026629,2]
[332688192,1721452244228,-150.0,0.00026634,2]
[332688193,1721452244238,-300.0,0.00026637,2]
[332688194,1721452244247,-150.0,0.00026643,2]
[332688195,1721452244256,-150.0,0.00026651,2]
[332688196,1721452244265,-150.0,0.00026653,2]
[332688197,1721452244274,-341.16608633,0.00026656,2]
[332688198,1721452244284,-150.0,0.0002666,2]
[332688199,1721452244293,-150.0,0.00026664,2]
[332688200,1721452244303,-500.0,0.00026666,2]
[332688201,1721452244316,-283.5188,0.00026666,2]
[332688202,1721452244326,-279.9404,0.00026666,2]
[332688203,1721452244337,-150.0,0.00026678,2]
[332688204,1721452244347,-150.0,0.00026679,2]
[332688205,1721452244357,-150.0,0.00026681,2]
[332688206,1721452244367,-150.0,0.00026682,2]
[332688207,1721452244378,-150.0,0.00026684,2]
[332688208,1721452244389,-150.0,0.00026685,2]
[332688209,1721452244398,-150.0,0.00026686,2]
[332688210,1721452244408,-300.0,0.00026694,2]
[332688211,1721452244417,-150.0,0.00026694,2]
[332688212,1721452244428,-150.0,0.00026695,2]
[332688213,1721452244437,-160.26460454,0.000267,2]
[332688214,1721452244447,-150.0,0.00026703,2]
[332688215,1721452244456,-150.0,0.00026704,2]
[332688216,1721452244465,-150.0,0.00026706,2]
[332688217,1721452244475,-150.0,0.00026706,2]
[332688218,1721452244486,-150.0,0.00026711,2]
[332688219,1721452244495,-150.0,0.00026713,2]
[332688220,1721452244505,-150.0,0.00026713,2]
[332688221,1721452244514,-150.0,0.00026719,2]
[332688222,1721452244524,-150.0,0.0002672,2]
[332688223,1721452244534,-150.0,0.0002672,2]
[332688224,1721452244609,-150.0,0.0002673,2]
[332688225,1721452244619,-150.0,0.0002673,2]
[332688226,1721452244629,-150.0,0.0002673,2]
[332688227,1721452244638,-150.0,0.00026732,2]
[332688228,1721452244648,-150.0,0.00026741,2]
[332688229,1721452244657,-150.0,0.00026748,2]
[332688230,1721452244668,-150.0,0.0002675,2]
[332688231,1721452244679,-150.0,0.00026756,2]
[332688232,1721452244688,-150.0,0.00026758,2]
[332688233,1721452244697,-150.0,0.00026763,2]
[332688234,1721452244707,-150.0,0.0002677,2]
[332688235,1721452244716,-150.0,0.0002677,2]
[332688236,1721452244725,-150.0,0.00026771,2]
[332688237,1721452244734,-150.0,0.00026773,2]
[332688238,1721452244744,-150.0,0.00026778,2]
[332688239,1721452244754,-150.0,0.00026779,2]
[332688240,1721452244763,-150.0,0.00026784,2]
[332688241,1721452244773,-150.0,0.00026786,2]
[332688242,1721452244782,-150.0,0.00026787,2]
[332688243,1721452244792,-150.0,0.00026787,2]
[332688244,1721452244801,-195.81526338,0.00026788,2]
[332688245,1721452244811,-372.73525299,0.00026788,2]
[332688246,1721452244820,-155.0,0.00026788,2]
[332688247,1721452244829,-8786.20856647,0.00026789,2]
[332688248,1721452244838,-150.0,0.00026789,2]
[332688249,1721452244847,-150.0,0.00026792,2]
[332688250,1721452244856,-778.73721428,0.00026799,2]
[332688251,1721452244865,-258.0,0.000268,2]
[332688252,1721452244875,-183.644152,0.00026803,2]
[332688253,1721452244885,-177.011806,0.00026803,2]
[332688254,1721452244894,-182.907287,0.00026803,2]
[332688255,1721452244905,-179.285401,0.00026803,2]
[332688256,1721452244917,-170.719966,0.00026803,2]
[332688257,1721452244926,-4088.567796,0.00026803,2]
[332688258,1721452244937,-2675.411881,0.00026803,2]
[332688259,1721452244946,-2693.283642,0.00026803,2]
[332688260,1721452244955,-1077.160611,0.00026803,2]
[332688261,1721452244965,-673.320911,0.00026803,2]
[332688262,1721452244974,-668.85297,0.00026803,2]
[332688263,1721452244983,-213.0626015,0.00026804,2]
[332688264,1721452244993,-4794.6731934,0.00026804,2]
[332688265,1721452245003,-217.7847323,0.00026804,2]
[332688266,1721452245012,-546.2809543,0.00026822,2]
[332688267,1721452245022,-6473.7242203,0.00026822,2]
[332688268,1721452245031,-155.0,0.0002684,13]
[332688269,1721452245041,-225.58067617,0.000269,2]
[332688270,1721452245050,-155.0,0.00026967,2]
[332688271,1721452245059,-450.0,0.00027,2]
[332688272,1721452245069,-3387.45244195,0.00027032,2]
[332688273,1721452245078,-648.64032589,0.00027032,2]
[332688274,1721452245088,-239.76101544,0.00027397,2]
[332688275,1721452245098,-1000.0,0.00027397,10]
[332688276,1721452245108,-268.5,0.00027397,10]
[332688277,1721452245117,-223.75,0.00027397,10]
[332688278,1721452245127,-225.75,0.000274,2]
[332688279,1721452245137,-231.68,0.000275,2]
[332688280,1721452245146,-151.66464046,0.00027582,2]
[332688281,1721452245156,-441.45,0.00027671,2]
[332688282,1721452245166,-150.28,0.00027714,2]
[332688283,1721452245175,-152.65155588,0.0002778,2]
[332688284,1721452245185,-150.0,0.00027809,2]
[332688285,1721452245195,-155.91384682,0.00027885,2]
[332688286,1721452245204,-1615.31,0.000279,14]
[332688287,1721452245214,-153.13738162,0.00027979,2]
[332688288,1721452245223,-151.5680096,0.00027982,2]
[332688289,1721452245232,-305.01515068,0.00027989,2]
[332688290,1721452245242,-371.26695724,0.00028,2]
[332688291,1721452245252,-151.5680096,0.00028014,2]
[332688292,1721452245261,-187.2801983,0.00028026,2]
[332688293,1721452245270,-152.0,0.0002808,5]
[332688294,1721452245280,-153.47002915,0.00028131,2]
[332688295,1721452245289,-151.61566793,0.00028217,2]
[332688296,1721452245298,-154.15138605,0.00028225,2]
[332688297,1721452245308,-152.88663034,0.00028291,2]
[332688298,1721452245318,-151.7227518,0.000283,2]
[332688299,1721452245327,-155.91384682,0.00028341,2]
[332688300,1721452245337,-502.58629691,0.00028399,2]
[332688301,1721452245346,-155.0,0.00028399,2]
[332688302,1721452245356,-166.66666668,0.00028436,2]
[332688303,1721452245365,-151.7227518,0.00028456,2]
[332688304,1721452245375,-152.65155588,0.00028476,2]
[332688305,1721452245385,-153.49,0.00028493,2]
[332688306,1721452245394,-225.75,0.000285,2]
[332688307,1721452245404,-165.0,0.0002853,17]
[332688308,1721452245413,-281.37497433,0.0002854,2]
[332688309,1721452245423,-152.65155588,0.00028575,2]
[332688310,1721452245432,-203.0,0.000286,2]
[332688311,1721452245443,-231.68,0.000286,2]
[332688312,1721452245452,-5000.0,0.000287,2]
[332688313,1721452245462,-300.0,0.00028799,10]
[332688314,1721452245471,-300.0,0.00028799,10]
[332688315,1721452245481,-1019442.8366073,0.000288,10]
[332688316,1721452245490,-152.65155588,0.00028959,2]
[332688317,1721452245499,-4176.06962263,0.00029,2]
[332688318,1721452245508,-1615.31,0.00029,14]
[332688319,1721452245518,-500.0,0.00029,2]
[332688320,1721452245528,-151.64406532,0.00029018,2]
[332688321,1721452245537,-151.7227518,0.00029093,2]
[332688322,1721452245546,-152.65155588,0.00029107,2]
[332688323,1721452245556,-152.88663034,0.00029139,2]
[332688324,1721452245568,-153.85633761,0.00029188,2]
[332688325,1721452245577,-152.88663034,0.00029192,2]
[332688326,1721452245589,-152.88663034,0.000292,2]
[332688327,1721452245599,-3387.45244195,0.00029221,15]
[332688328,1721452245608,-648.64032589,0.00029221,15]
[332688329,1721452245618,-203.0,0.0002934,2]
[332688330,1721452245627,-151.5680096,0.00029342,2]
[332688331,1721452245638,-166.6666667,0.00029379,2]
[332688332,1721452245648,-159.61625138,0.00029459,2]
[332688333,1721452245659,-168.99573015,0.00029494,2]
[332688334,1721452245669,-158.98212643,0.00029517,2]
[332688335,1721452245679,-167.15891012,0.0002961,2]
[332688336,1721452245689,-520.8781819,0.00029628,2]
[332688337,1721452245698,-504.76217563,0.00029628,2]
[332688338,1721452245707,-500.0,0.00029628,2]
[332688339,1721452245716,-153.13738162,0.00029644,2]
[332688340,1721452245726,-152.65155588,0.00029652,2]
[332688341,1721452245736,-151.5680096,0.00029656,2]
[332688342,1721452245745,-225.75,0.000297,2]
[332688343,1721452245755,-1000.0,0.0002975,25]
[332688344,1721452245765,-366.61352416,0.00029762,2]
[332688345,1721452245774,-366.61352416,0.00029762,2]
[332688346,1721452245784,-151.64406532,0.00029782,2]
[332688347,1721452245793,-192.22214183,0.000298,21]
[332688348,1721452245803,-231.68,0.000298,2]
[332688349,1721452245812,-151.7227518,0.00029817,2]
[332688350,1721452245821,-154.15138605,0.00029844,2]
[332688351,1721452245830,-151.5680096,0.00029855,2]
[332688352,1721452245839,-153.13738162,0.00029871,2]
[332688353,1721452245849,-441.45,0.00029935,2]
[332688354,1721452245858,-151.5680096,0.00029957,2]
[332688355,1721452245868,-303.02090919,0.00029999,10]
[332688356,1721452245877,-151.64406532,0.00029999,2]
[332688357,1721452245887,-305.34466376,0.00029999,10]
[332688358,1721452245896,-854.37,0.0003,2]
[332688359,1721452245906,-12074.3369917,0.0003,4]
[332688360,1721452245915,-464381.62922991,0.0003,30]
[332688361,1721452245925,-1000.0,0.0003,25]
[332688362,1721452245935,-269781.65650189,0.0003,2]
[332688363,1721452245944,-289.008694,0.0003,7]
[332688364,1721452245954,-151.0,0.0003,7]
[332688365,1721452245963,-151.0,0.0003,7]
[332688366,1721452245973,-215.795442,0.0003,7]
[332688367,1721452245982,-215.795442,0.0003,7]
[332688368,1721452245992,-153.208662,0.0003,7]
[332688369,1721452246001,-91000.0,0.0003,7]
[332688370,1721452246011,-151.0,0.0003,7]
[332688371,1721452246020,-151.874162,0.0003,7]
[332688372,1721452246029,-152.205577,0.0003,7]
[332688373,1721452246039,-151.0,0.0003,7]
[332688374,1721452246048,-151.0,0.0003,7]
[332688375,1721452246058,-151.0,0.0003,7]
[332688376,1721452246070,-151.0,0.0003,7]
[332688377,1721452246083,-198.047968,0.0003,7]
[332688378,1721452246092,-151.0,0.0003,7]
[332688379,1721452246102,-151.0,0.0003,7]
[332688380,1721452246112,-151.0,0.0003,7]
[332688381,1721452246121,-151.0,0.0003,7]
[332688382,1721452246131,-151.0,0.0003,7]
[332688383,1721452246140,-151.0,0.0003,7]
[332688384,1721452246150,-151.0,0.0003,7]
[332688385,1721452246159,-151.0,0.0003,7]
[332688386,1721452246169,-151.0,0.0003,7]
[332688387,1721452246184,-151.0,0.0003,7]
[332688388,1721452246193,-151.0,0.0003,7]
[332688389,1721452246202,-151.0,0.0003,7]
[332688390,1721452246212,-151.0,0.0003,7]
[332688391,1721452246221,-151.0,0.0003,7]
[332688392,1721452246231,-151.0,0.0003,7]
[332688393,1721452246240,-151.0,0.0003,7]
[332688394,1721452246250,-151.0,0.0003,7]
[332688395,1721452246259,-151.0,0.0003,7]
[332688396,1721452246268,-151.0,0.0003,7]
[332688397,1721452246278,-292.5658119,0.0003,2]
[332688398,1721452246288,-151.0,0.0003,7]
[332688399,1721452246297,-8510.69186124,0.0003,4]
[332688400,1721452246307,-284.0,0.0003,7]
[332688401,1721452246318,-417.674845,0.0003,7]
[332688402,1721452246328,-151.0,0.0003,7]
[332688403,1721452246337,-151.0,0.0003,7]
[332688404,1721452246347,-151.0,0.0003,7]
[332688405,1721452246357,-151.0,0.0003,7]
[332688406,1721452246367,-151.0,0.0003,7]
[332688407,1721452246376,-151.0,0.0003,7]
[332688408,1721452246387,-884.369856,0.0003,7]
[332688409,1721452246396,-151.0,0.0003,7]
[332688410,1721452246406,-151.0,0.0003,7]
[332688411,1721452246415,-884.369856,0.0003,7]
[332688412,1721452246425,-151.0,0.0003,7]
[332688413,1721452246435,-1116.468242,0.0003,7]
[332688414,1721452246444,-1116.468242,0.0003,7]
[332688415,1721452246456,-151.0,0.0003,7]
[332688416,1721452246465,-151.0,0.0003,7]
[332688417,1721452246475,-301.412,0.0003,7]
[332688418,1721452246485,-151.0,0.0003,7]
[332688419,1721452246494,-301.412,0.0003,7]
[332688420,1721452246504,-152.65155588,0.00030034,7]
[332688421,1721452246513,-187.2801983,0.0003005,7]
[332688422,1721452246523,-275.27,0.00030055,2]
[332688423,1721452246533,-203.0,0.0003009,2]
[332688424,1721452246543,-1931.0,0.000301,2]
[332688425,1721452246553,-601.82960369,0.000301,2]
[332688426,1721452246563,-278.76101704,0.000301,2]
[332688427,1721452246572,-6101.58220956,0.000301,30]
[332688428,1721452246583,-500.0,0.00030136,30]
[332688429,1721452246595,-500.0,0.00030136,30]
[332688430,1721452246604,-500.0,0.00030136,30]
[332688431,1721452246614,-500.0,0.00030136,30]
[332688432,1721452246625,-500.0,0.00030136,30]
[332688433,1721452246636,-500.0,0.00030136,30]
[332688434,1721452246646,-500.0,0.00030136,30]
[332688435,1721452246656,-500.0,0.00030136,30]
[332688436,1721452246667,-500.0,0.00030136,30]
[332688437,1721452246676,-500.0,0.00030136,30]
[332688438,1721452246686,-500.0,0.00030136,30]
[332688439,1721452246696,-500.0,0.00030136,30]
[332688440,1721452246705,-500.0,0.00030136,30]
[332688441,1721452246715,-500.0,0.00030136,30]
[332688442,1721452246725,-500.0,0.00030136,30]
[332688443,1721452246734,-500.0,0.00030136,30]
[332688444,1721452246744,-500.0,0.00030136,30]
[332688445,1721452246754,-500.0,0.00030136,30]
[332688446,1721452246764,-500.0,0.00030136,30]
[332688447,1721452246774,-500.0,0.00030136,30]
[332688448,1721452246783,-159.61625138,0.00030152,7]
[332688449,1721452246793,-1615.31,0.000302,14]
[332688450,1721452246803,-169.35308736,0.00030238,7]
[332688451,1721452246813,-151.7227518,0.00030297,7]
[332688452,1721452246823,-152.88663034,0.00030326,7]
[332688453,1721452246833,-152.65155588,0.00030392,7]
[332688454,1721452246843,-1000.0,0.000305,25]
[332688455,1721452246852,-159.61625138,0.00030504,7]
[332688456,1721452246862,-159.61625138,0.00030513,7]
[332688457,1721452246871,-399.0,0.00030548,120]
[332688458,1721452246881,-500.0,0.0003058,30]
[332688459,1721452246891,-153.49,0.00030685,2]
[332688460,1721452246900,-151.00936381,0.00030698,7]
[332688461,1721452246910,-500.0,0.00030724,10]
[332688462,1721452246920,-151.64406532,0.00030738,7]
[332688463,1721452246929,-203.0,0.0003083,2]
[332688464,1721452246939,-281.37497433,0.000309,2]
[332688465,1721452246949,-225.58067617,0.000309,2]
[332688466,1721452246959,-151.64406532,0.00030918,7]
[332688467,1721452246968,-152.88663034,0.00030923,7]
[332688468,1721452246977,-152.65155588,0.00030929,7]
[332688469,1721452246987,-152.65155588,0.00030947,7]
[332688470,1721452246997,-1049.6389227,0.00030978,2]
[332688471,1721452247007,-555.3856368,0.00030979,2]
[332688472,1721452247016,-564.4903194,0.00030979,2]
[332688473,1721452247026,-6581.6196239,0.00030979,2]
[332688474,1721452247035,-6689.5150276,0.00030979,2]
[332688475,1721452247045,-246.2056729,0.00030979,2]
[332688476,1721452247055,-279.3487442,0.00030979,2]
[332688477,1721452247065,-5504.7420872,0.00030979,2]
[332688478,1721452247074,-6214.8109811,0.00030979,2]
[332688479,1721452247083,-250.0376425,0.00030979,2]
[332688480,1721452247093,-282.2905527,0.00030979,2]
[332688481,1721452247102,-80916.77600295,0.00031,11]
[332688482,1721452247111,-4190.77901857,0.00031,2]
[332688483,1721452247121,-3470445.46,0.00031,10]
[332688484,1721452247131,-152.493535,0.00031,7]
[332688485,1721452247140,-151.0,0.00031,7]
[332688486,1721452247150,-153.907468,0.00031,7]
[332688487,1721452247160,-215.795442,0.00031,7]
[332688488,1721452247170,-215.795442,0.00031,7]
[332688489,1721452247180,-300.384376,0.00031,7]
[332688490,1721452247190,-151.0,0.00031,7]
[332688491,1721452247200,-151.0,0.00031,7]
[332688492,1721452247209,-151.0,0.00031,7]
[332688493,1721452247219,-151.0,0.00031,7]
[332688494,1721452247228,-151.0,0.00031,7]
[332688495,1721452247237,-151.0,0.00031,7]
[332688496,1721452247246,-151.0,0.00031,7]
[332688497,1721452247256,-151.0,0.00031,7]
[332688498,1721452247265,-278.692934,0.00031,7]
[332688499,1721452247275,-151.0,0.00031,7]
[332688500,1721452247284,-151.0,0.00031,7]
[332688501,1721452247294,-161.482097,0.00031,7]
[332688502,1721452247303,-151.0,0.00031,7]
[332688503,1721452247313,-1203.665083,0.00031,7]
[332688504,1721452247322,-151.0,0.00031,7]
[332688505,1721452247332,-151.0,0.00031,7]
[332688506,1721452247341,-1203.665083,0.00031,7]
[332688507,1721452247351,-151.0,0.00031,7]
[332688508,1721452247360,-170.986568,0.00031,7]
[332688509,1721452247370,-151.0,0.00031,7]
[332688510,1721452247379,-170.986568,0.00031,7]
[332688511,1721452247389,-151.0,0.00031,7]
[332688512,1721452247399,-151.0,0.00031,7]
[332688513,1721452247408,-151.0,0.00031,7]
[332688514,1721452247418,-151.0,0.00031,7]
[332688515,1721452247427,-151.0,0.00031,7]
[332688516,1721452247437,-151.0,0.00031,7]
[332688517,1721452247446,-151.0,0.00031,7]
[332688518,1721452247455,-151.0,0.00031,7]
[332688519,1721452247465,-3294.129612,0.00031,7]
[332688520,1721452247475,-3294.129612,0.00031,7]
[332688521,1721452247484,-151.0,0.00031,7]
[332688522,1721452247494,-227.545334,0.00031,7]
[332688523,1721452247503,-227.545334,0.00031,7]
[332688524,1721452247513,-173.629087,0.00031,7]
[332688525,1721452247522,-173.629087,0.00031,7]
[332688526,1721452247532,-151.0,0.00031,7]
[332688527,1721452247542,-292.190895,0.00031,7]
[332688528,1721452247552,-151.0,0.00031,7]
[332688529,1721452247563,-292.190895,0.00031,7]
[332688530,1721452247572,-151.0,0.00031,7]
[332688531,1721452247581,-151.0,0.00031,7]
[332688532,1721452247599,-151.0,0.00031,7]
[332688533,1721452247612,-151.0,0.00031,7]
[332688534,1721452247621,-153.487888,0.00031,7]
[332688535,1721452247631,-153.368224,0.00031,7]
[332688536,1721452247640,-151.0,0.00031,7]
[332688537,1721452247650,-151.0,0.00031,7]
[332688538,1721452247660,-151.0,0.00031,7]
[332688539,1721452247669,-151.0,0.00031,7]
[332688540,1721452247679,-151.0,0.00031,7]
[332688541,1721452247689,-151.0,0.00031,7]
[332688542,1721452247699,-151.0,0.00031,7]
[332688543,1721452247708,-151.0,0.00031,7]
[332688544,1721452247718,-151.0,0.00031,7]
[332688545,1721452247728,-151.0,0.00031,7]
[332688546,1721452247738,-151.0,0.00031,7]
[332688547,1721452247747,-151.0,0.00031,7]
[332688548,1721452247758,-151.0,0.00031,7]
[332688549,1721452247768,-151.0,0.00031,7]
[332688550,1721452247777,-151.0,0.00031,7]
[332688551,1721452247787,-550.0,0.00031,2]
[332688552,1721452247796,-417.674845,0.00031,7]
[332688553,1721452247806,-151.0,0.00031,7]
[332688554,1721452247816,-151.0,0.00031,7]
[332688555,1721452247826,-884.369856,0.00031,7]
[332688556,1721452247836,-151.0,0.00031,7]
[332688557,1721452247846,-151.0,0.00031,7]
[332688558,1721452247855,-884.369856,0.00031,7]
[332688559,1721452247865,-151.0,0.00031,7]
[332688560,1721452247874,-1116.468242,0.00031,7]
[332688561,1721452247884,-1116.468242,0.00031,7]
[332688562,1721452247893,-151.0,0.00031,7]
[332688563,1721452247903,-151.0,0.00031,7]
[332688564,1721452247912,-151.0,0.00031,7]
[332688565,1721452247921,-301.412,0.00031,7]
[332688566,1721452247930,-151.0,0.00031,7]
[332688567,1721452247940,-301.412,0.00031,7]
[332688568,1721452247950,-151.0,0.00031,7]
[332688569,1721452247959,-151.0,0.00031,7]
[332688570,1721452247969,-151.0,0.00031,7]
[332688571,1721452247978,-151.0,0.00031,7]
[332688572,1721452247987,-151.64406532,0.00031001,7]
[332688573,1721452247997,-152.65155588,0.00031007,7]
[332688574,1721452248006,-152.65155588,0.0003103,7]
[332688575,1721452248015,-151.7227518,0.00031035,7]
[332688576,1721452248024,-151.64406532,0.00031116,7]
[332688577,1721452248034,-152.88663034,0.00031162,7]